[Event "*** SCC Grand Prix: Titled Tuesday Blitz"]
[Site "Chess.com"]
[Date "2020.07.21"]
[Round "10"]
[White "Hikaru"]
[Black "RaunakSadhwani2005"]
[Result "1-0"]
[WhiteElo "3253"]
[BlackElo "3005"]
[TimeControl "180+1"]
[EndTime "12:00:06 PDT"]
[Termination "Hikaru won by resignation"]

1. Nf3 {[%clk 0:03:00.9]} 1... d5 {[%clk 0:02:59.5]} 2. e3 {[%clk 0:03:00]} 2...
Nf6 {[%clk 0:02:57.9]} 3. c4 {[%clk 0:02:59.5]} 3... c6 {[%clk 0:02:58.1]} 4. d4
{[%clk 0:02:59.8]} 4... g6 {[%clk 0:02:53.2]} 5. Bd3 {[%clk 0:02:57.7]} 5... Bg7
{[%clk 0:02:51.3]} 6. Nbd2 {[%clk 0:02:57.9]} 6... O-O {[%clk 0:02:50.4]} 7. O-O
{[%clk 0:02:58.5]} 7... Nbd7 {[%clk 0:02:50.4]} 8. b3 {[%clk 0:02:48.8]} 8... b6
{[%clk 0:02:45.3]} 9. Bb2 {[%clk 0:02:44.4]} 9... Bb7 {[%clk 0:02:45.5]} 10. Rc1
{[%clk 0:02:44.3]} 10... e6 {[%clk 0:02:42.7]} 11. c5 {[%clk 0:02:39.9]} 11...
bxc5 {[%clk 0:02:40.6]} 12. dxc5 {[%clk 0:02:40.4]} 12... Qe7 {[%clk 0:02:41]}
13. b4 {[%clk 0:02:40.4]} 13... e5 {[%clk 0:02:41.3]} 14. e4 {[%clk 0:02:37.4]}
14... dxe4 {[%clk 0:02:38.3]} 15. Nxe4 {[%clk 0:02:32.9]} 15... Nxe4 {[%clk
0:02:38.3]} 16. Bxe4 {[%clk 0:02:33.8]} 16... Nf6 {[%clk 0:02:38.9]} 17. Bc2
{[%clk 0:02:24.8]} 17... Ba6 {[%clk 0:02:27.4]} 18. Nxe5 {[%clk 0:02:14.1]}
18... Bxf1 {[%clk 0:02:26.9]} 19. Qxf1 {[%clk 0:02:15]} 19... Qb7 {[%clk
0:02:20]} 20. Bb3 {[%clk 0:02:10.3]} 20... Ng4 {[%clk 0:02:09.9]} 21. Nxg4
{[%clk 0:01:51.7]} 21... Bxb2 {[%clk 0:02:10.1]} 22. Rb1 {[%clk 0:01:46.3]}
22... Bd4 {[%clk 0:02:07.5]} 23. Qc4 {[%clk 0:01:41.8]} 23... Rad8 {[%clk
0:02:02.4]} 24. h3 {[%clk 0:01:42.3]} 24... Bg7 {[%clk 0:01:52.5]} 25. a3 {[%clk
0:01:39.3]} 25... Rd4 {[%clk 0:01:47.4]} 26. Nh6+ {[%clk 0:01:34.9]} 26... Kh8
{[%clk 0:01:21.1]} 27. Nxf7+ {[%clk 0:01:33.6]} 27... Rxf7 {[%clk 0:01:22]} 28.
Qxf7 {[%clk 0:01:34.1]} 28... Qxf7 {[%clk 0:01:22.2]} 29. Bxf7 {[%clk 0:01:35]}
29... Rd2 {[%clk 0:01:22]} 30. g3 {[%clk 0:00:53.3]} 30... Bd4 {[%clk
0:01:20.3]} 31. Rf1 {[%clk 0:00:54]} 31... Rd3 {[%clk 0:01:15.5]} 32. Kg2 {[%clk
0:00:54.3]} 32... Rxa3 {[%clk 0:01:14.7]} 33. Rd1 {[%clk 0:00:54.5]} 33... Bc3
{[%clk 0:01:14.2]} 34. b5 {[%clk 0:00:53.3]} 34... cxb5 {[%clk 0:01:10.8]} 35.
Rd7 {[%clk 0:00:46.9]} 35... Ba5 {[%clk 0:00:37.4]} 36. Rxa7 {[%clk 0:00:29.6]}
36... Bb4 {[%clk 0:00:37.1]} 37. Rc7 {[%clk 0:00:30]} 37... Rc3 {[%clk 0:00:33]}
38. c6 {[%clk 0:00:30.4]} 38... Bd6 {[%clk 0:00:32.9]} 39. Rc8+ {[%clk
0:00:30.6]} 39... Kg7 {[%clk 0:00:33]} 40. Bd5 {[%clk 0:00:31.2]} 40... Kf6
{[%clk 0:00:18.2]} 41. Re8 {[%clk 0:00:19.9]} 41... Be5 {[%clk 0:00:10.1]} 42.
f4 {[%clk 0:00:19.3]} 42... Bd4 {[%clk 0:00:09.2]} 43. Re6+ {[%clk 0:00:19.3]}
43... Kg7 {[%clk 0:00:09.5]} 44. Re7+ {[%clk 0:00:19.4]} 44... Kf8 {[%clk
0:00:06.1]} 45. Rxh7 {[%clk 0:00:19]} 45... b4 {[%clk 0:00:06.3]} 46. Rb7 {[%clk
0:00:19.1]} 1-0

[Event "*** SCC Grand Prix: Titled Tuesday Blitz"]
[Site "Chess.com"]
[Date "2020.07.21"]
[Round "10"]
[White "alexrustemov"]
[Black "nikitakhoroshev"]
[Result "1-0"]
[WhiteElo "2697"]
[BlackElo "2550"]
[TimeControl "180+1"]
[EndTime "12:00:06 PDT"]
[Termination "alexrustemov won by checkmate"]

1. d4 {[%clk 0:03:00.9]} 1... Nf6 {[%clk 0:02:57.7]} 2. c4 {[%clk 0:03:00.2]}
2... d6 {[%clk 0:02:57]} 3. Nf3 {[%clk 0:02:59.8]} 3... Nbd7 {[%clk 0:02:56.7]}
4. Nc3 {[%clk 0:02:58.6]} 4... e5 {[%clk 0:02:57.2]} 5. g3 {[%clk 0:02:58.7]}
5... c6 {[%clk 0:02:56.1]} 6. Qc2 {[%clk 0:02:57.5]} 6... Be7 {[%clk 0:02:54.3]}
7. Bg2 {[%clk 0:02:57.7]} 7... O-O {[%clk 0:02:54.3]} 8. O-O {[%clk 0:02:58.2]}
8... Re8 {[%clk 0:02:47.9]} 9. Rd1 {[%clk 0:02:56.5]} 9... Qc7 {[%clk
0:02:48.3]} 10. h3 {[%clk 0:02:54.7]} 10... a6 {[%clk 0:02:48.5]} 11. Be3 {[%clk
0:02:47.1]} 11... h6 {[%clk 0:02:45.3]} 12. Rac1 {[%clk 0:02:45]} 12... Bf8
{[%clk 0:02:45.4]} 13. dxe5 {[%clk 0:02:39.3]} 13... dxe5 {[%clk 0:02:45]} 14.
Na4 {[%clk 0:02:26]} 14... b5 {[%clk 0:02:29]} 15. cxb5 {[%clk 0:02:09.8]} 15...
axb5 {[%clk 0:02:29.9]} 16. Nc3 {[%clk 0:02:09.5]} 16... Qb8 {[%clk 0:02:26.4]}
17. Nd2 {[%clk 0:02:05.5]} 17... Ra6 {[%clk 0:02:23.9]} 18. a4 {[%clk 0:01:49]}
18... bxa4 {[%clk 0:02:21]} 19. Nxa4 {[%clk 0:01:48.6]} 19... Bb7 {[%clk
0:02:11.4]} 20. Nc4 {[%clk 0:01:43.5]} 20... Nd5 {[%clk 0:02:09.8]} 21. Bd2
{[%clk 0:01:40.4]} 21... Qa7 {[%clk 0:02:04.8]} 22. b3 {[%clk 0:01:24.2]} 22...
Nc5 {[%clk 0:01:56]} 23. Nxc5 {[%clk 0:00:43.9]} 23... Bxc5 {[%clk 0:01:56.9]}
24. e3 {[%clk 0:00:44.1]} 24... Ra2 {[%clk 0:01:48]} 25. Qb1 {[%clk 0:00:42.2]}
25... Nb4 {[%clk 0:01:08.4]} 26. Bxb4 {[%clk 0:00:32.3]} 26... Bxb4 {[%clk
0:01:09.3]} 27. Nd6 {[%clk 0:00:32.7]} 27... Bxd6 {[%clk 0:01:05]} 28. Rxd6
{[%clk 0:00:33.6]} 28... Qa3 {[%clk 0:00:39.6]} 29. Rcd1 {[%clk 0:00:21.2]}
29... Rb2 {[%clk 0:00:32.9]} 30. Qf5 {[%clk 0:00:20.2]} 30... Bc8 {[%clk
0:00:20.8]} 31. Qe4 {[%clk 0:00:18.3]} 31... Qxb3 {[%clk 0:00:20.5]} 32. Rd8
{[%clk 0:00:17.7]} 32... Qe6 {[%clk 0:00:13.4]} 33. Qxc6 {[%clk 0:00:14.5]}
33... Qxc6 {[%clk 0:00:11.6]} 34. Bxc6 {[%clk 0:00:15.2]} 34... Rf8 {[%clk
0:00:10]} 35. Rxf8+ {[%clk 0:00:14.3]} 35... Kxf8 {[%clk 0:00:10.9]} 36. Rd8+
{[%clk 0:00:14.4]} 36... Ke7 {[%clk 0:00:11.8]} 37. Rxc8 {[%clk 0:00:15.3]}
37... Rb1+ {[%clk 0:00:11.8]} 38. Kg2 {[%clk 0:00:15.1]} 38... Rc1 {[%clk
0:00:12.7]} 39. Bb7 {[%clk 0:00:15.4]} 39... Rb1 {[%clk 0:00:13]} 40. Bf3 {[%clk
0:00:14.9]} 40... f5 {[%clk 0:00:12.9]} 41. Rc7+ {[%clk 0:00:14.3]} 41... Kf6
{[%clk 0:00:13.2]} 42. Bd5 {[%clk 0:00:14.6]} 42... e4 {[%clk 0:00:13.2]} 43.
Rc6+ {[%clk 0:00:14.2]} 43... Ke5 {[%clk 0:00:13.4]} 44. Bf7 {[%clk 0:00:14]}
44... f4 {[%clk 0:00:12.7]} 45. gxf4+ {[%clk 0:00:13.4]} 45... Kf5 {[%clk
0:00:13.6]} 46. Bg6# {[%clk 0:00:13.2]} 1-0

[Event "*** SCC Grand Prix: Titled Tuesday Blitz"]
[Site "Chess.com"]
[Date "2020.07.21"]
[Round "10"]
[White "seorobert1971"]
[Black "Bayernbk"]
[Result "1-0"]
[WhiteElo "2694"]
[BlackElo "2532"]
[TimeControl "180+1"]
[EndTime "12:00:06 PDT"]
[Termination "seorobert1971 won by resignation"]

1. c4 {[%clk 0:03:00.9]} 1... e6 {[%clk 0:02:59.9]} 2. Nc3 {[%clk 0:03:00.9]}
2... d5 {[%clk 0:03:00.5]} 3. d4 {[%clk 0:03:01]} 3... Nf6 {[%clk 0:03:00.5]} 4.
Nf3 {[%clk 0:03:01.2]} 4... c5 {[%clk 0:03:00.7]} 5. cxd5 {[%clk 0:02:51.7]}
5... Nxd5 {[%clk 0:03:00.6]} 6. g3 {[%clk 0:02:51.8]} 6... Be7 {[%clk 0:03:00]}
7. Bg2 {[%clk 0:02:50.8]} 7... O-O {[%clk 0:03:00.2]} 8. O-O {[%clk 0:02:50.8]}
8... Nc6 {[%clk 0:03:00.5]} 9. Nxd5 {[%clk 0:02:48.1]} 9... exd5 {[%clk
0:03:00.7]} 10. dxc5 {[%clk 0:02:46.2]} 10... Bxc5 {[%clk 0:03:01.2]} 11. Bg5
{[%clk 0:02:45.8]} 11... f6 {[%clk 0:02:58.7]} 12. Bd2 {[%clk 0:02:44.8]} 12...
Be6 {[%clk 0:02:58.8]} 13. Rc1 {[%clk 0:02:43.9]} 13... Qe7 {[%clk 0:02:53.6]}
14. Bc3 {[%clk 0:02:41.9]} 14... Rfd8 {[%clk 0:02:51.2]} 15. Nd4 {[%clk
0:02:41.8]} 15... Nxd4 {[%clk 0:02:49.5]} 16. Bxd4 {[%clk 0:02:41.7]} 16... Rac8
{[%clk 0:02:48.6]} 17. Bxc5 {[%clk 0:02:41.4]} 17... Rxc5 {[%clk 0:02:48.2]} 18.
Qd4 {[%clk 0:02:41.4]} 18... Rdc8 {[%clk 0:02:35.4]} 19. Rcd1 {[%clk 0:02:41]}
19... b6 {[%clk 0:02:33.1]} 20. e3 {[%clk 0:02:40.5]} 20... Qf7 {[%clk
0:02:27.3]} 21. Rd2 {[%clk 0:02:38.3]} 21... a5 {[%clk 0:02:21.9]} 22. h4 {[%clk
0:02:37.5]} 22... Rc4 {[%clk 0:02:03.3]} 23. Qd3 {[%clk 0:02:37.1]} 23... R4c5
{[%clk 0:02:03.1]} 24. Rfd1 {[%clk 0:02:35.9]} 24... Rc1 {[%clk 0:01:51.1]} 25.
Bxd5 {[%clk 0:02:25.7]} 25... Bxd5 {[%clk 0:01:42.5]} 26. Qxd5 {[%clk
0:02:25.2]} 26... Qxd5 {[%clk 0:01:41.5]} 27. Rxd5 {[%clk 0:02:24.8]} 27...
Rxd1+ {[%clk 0:01:42]} 28. Rxd1 {[%clk 0:02:24.4]} 28... Rc2 {[%clk 0:01:42.6]}
29. Rb1 {[%clk 0:02:24.1]} 29... Kf7 {[%clk 0:01:35.5]} 30. Kg2 {[%clk 0:02:24]}
30... f5 {[%clk 0:01:29.6]} 31. Kf3 {[%clk 0:02:20.3]} 31... Kf6 {[%clk
0:01:29]} 32. a4 {[%clk 0:02:19.6]} 32... g6 {[%clk 0:01:25.9]} 33. b3 {[%clk
0:02:14.3]} 33... Ke5 {[%clk 0:01:22.4]} 34. Rd1 {[%clk 0:02:01.8]} 34... Rc3
{[%clk 0:01:18.6]} 35. Rb1 {[%clk 0:02:01.6]} 35... Kf6 {[%clk 0:01:01.8]} 36.
Rb2 {[%clk 0:01:57.4]} 36... h6 {[%clk 0:00:58]} 37. Ke2 {[%clk 0:01:56.3]}
37... g5 {[%clk 0:00:57.3]} 38. hxg5+ {[%clk 0:01:55.6]} 38... hxg5 {[%clk
0:00:58.2]} 39. Kd2 {[%clk 0:01:55.7]} 39... Rc8 {[%clk 0:00:56.6]} 40. Rc2
{[%clk 0:01:55.5]} 40... Rd8+ {[%clk 0:00:42.2]} 41. Ke2 {[%clk 0:01:55.4]}
41... Rd6 {[%clk 0:00:42.1]} 42. Rc8 {[%clk 0:01:51.5]} 42... g4 {[%clk
0:00:41.3]} 43. Rc4 {[%clk 0:01:48.8]} 43... Ke5 {[%clk 0:00:40.4]} 44. Rf4
{[%clk 0:01:44.5]} 44... Rc6 {[%clk 0:00:39.3]} 45. Kd3 {[%clk 0:01:44.4]} 45...
Rd6+ {[%clk 0:00:36]} 46. Rd4 {[%clk 0:01:43.5]} 46... Rc6 {[%clk 0:00:35.6]}
47. Rd8 {[%clk 0:01:36.4]} 47... Rh6 {[%clk 0:00:34.2]} 48. Kc4 {[%clk
0:01:32.3]} 48... Rh2 {[%clk 0:00:28.6]} 49. Rd2 {[%clk 0:01:31.2]} 49... Rh1
{[%clk 0:00:21.5]} 50. Kb5 {[%clk 0:01:14]} 50... Rb1 {[%clk 0:00:21.5]} 51. Rd3
{[%clk 0:01:14]} 51... Ke4 {[%clk 0:00:18.3]} 52. Rd4+ {[%clk 0:01:14]} 52...
Ke5 {[%clk 0:00:16.2]} 53. Kxb6 {[%clk 0:01:13.2]} 53... Rxb3+ {[%clk
0:00:15.8]} 54. Kxa5 {[%clk 0:01:13.2]} 54... Rb2 {[%clk 0:00:16.4]} 55. Rf4
{[%clk 0:01:13.2]} 55... Ke6 {[%clk 0:00:15.1]} 56. Ka6 {[%clk 0:01:12.9]} 56...
Ke5 {[%clk 0:00:15.5]} 57. a5 {[%clk 0:01:12.8]} 57... Rb3 {[%clk 0:00:16.1]}
58. Ka7 {[%clk 0:01:11.9]} 58... Rb2 {[%clk 0:00:16.6]} 59. a6 {[%clk
0:01:11.8]} 59... Rb3 {[%clk 0:00:16.7]} 60. Ka8 {[%clk 0:01:10.9]} 60... Rb2
{[%clk 0:00:16.9]} 61. a7 {[%clk 0:01:10.9]} 61... Rb5 {[%clk 0:00:17.6]} 62.
Rc4 {[%clk 0:01:08.1]} 62... Kd5 {[%clk 0:00:16.7]} 63. Rc7 {[%clk 0:01:06.2]}
63... Ke4 {[%clk 0:00:17]} 64. Rb7 {[%clk 0:01:02.3]} 64... Ra5 {[%clk
0:00:14.6]} 65. Rb4+ {[%clk 0:01:01.1]} 65... Ke5 {[%clk 0:00:13.1]} 66. Kb7
{[%clk 0:01:00.6]} 1-0

[Event "*** SCC Grand Prix: Titled Tuesday Blitz"]
[Site "Chess.com"]
[Date "2020.07.21"]
[Round "10"]
[White "biostatistician"]
[Black "MestreSoares"]
[Result "1-0"]
[WhiteElo "2565"]
[BlackElo "2097"]
[TimeControl "180+1"]
[EndTime "12:00:07 PDT"]
[Termination "biostatistician won by resignation"]

1. d4 {[%clk 0:03:00.8]} 1... Nf6 {[%clk 0:02:59.2]} 2. Nf3 {[%clk 0:03:01.7]}
2... c5 {[%clk 0:02:59.3]} 3. d5 {[%clk 0:03:02.1]} 3... d6 {[%clk 0:02:58.1]}
4. c4 {[%clk 0:03:03]} 4... g6 {[%clk 0:02:57.1]} 5. Nc3 {[%clk 0:03:03.4]} 5...
Bg7 {[%clk 0:02:57.5]} 6. e4 {[%clk 0:03:03.6]} 6... O-O {[%clk 0:02:57.5]} 7.
Bd3 {[%clk 0:03:04.3]} 7... Nbd7 {[%clk 0:02:57.1]} 8. h3 {[%clk 0:03:04.1]}
8... a6 {[%clk 0:02:48.8]} 9. O-O {[%clk 0:03:03.9]} 9... Ne8 {[%clk 0:02:44.6]}
10. a4 {[%clk 0:03:02.3]} 10... Ne5 {[%clk 0:02:42.5]} 11. Nxe5 {[%clk
0:03:01.9]} 11... Bxe5 {[%clk 0:02:42.8]} 12. Bh6 {[%clk 0:03:02.7]} 12... Ng7
{[%clk 0:02:32.3]} 13. f4 {[%clk 0:03:02.5]} 13... Bd4+ {[%clk 0:02:30.3]} 14.
Kh2 {[%clk 0:03:03]} 14... f6 {[%clk 0:02:30]} 15. Qf3 {[%clk 0:03:01.6]} 15...
e5 {[%clk 0:02:25.6]} 16. dxe6 {[%clk 0:02:57.2]} 16... Bxe6 {[%clk 0:02:24.4]}
17. Rae1 {[%clk 0:02:50.7]} 17... Bd7 {[%clk 0:02:21.1]} 18. Nd5 {[%clk
0:02:43.3]} 18... Bc6 {[%clk 0:02:19.3]} 19. f5 {[%clk 0:02:36]} 19... g5 {[%clk
0:02:15.4]} 20. h4 {[%clk 0:02:31.8]} 20... Bxd5 {[%clk 0:01:57.6]} 21. exd5
{[%clk 0:02:31.2]} 21... Be5+ {[%clk 0:01:57.6]} 22. Kh1 {[%clk 0:02:30.4]}
22... gxh4 {[%clk 0:01:56.8]} 23. Qg4 {[%clk 0:02:30]} 23... Qd7 {[%clk
0:01:52.1]} 24. Qxh4 {[%clk 0:02:28.4]} 24... Kh8 {[%clk 0:01:49.3]} 25. Re4
{[%clk 0:02:22.3]} 25... Rg8 {[%clk 0:01:48.5]} 26. Rg4 {[%clk 0:02:20.9]} 26...
Raf8 {[%clk 0:01:45.4]} 27. Rf3 {[%clk 0:02:20.5]} 27... Ne8 {[%clk 0:01:43.3]}
28. b3 {[%clk 0:02:18.2]} 28... a5 {[%clk 0:01:41.2]} 29. Bxf8 {[%clk
0:02:17.3]} 29... Rxf8 {[%clk 0:01:34.7]} 30. Qh6 {[%clk 0:02:14.9]} 30... Qf7
{[%clk 0:01:32.2]} 31. Rh3 {[%clk 0:02:14.6]} 31... Rg8 {[%clk 0:01:23.5]} 32.
Rgh4 {[%clk 0:02:14.4]} 32... Rg7 {[%clk 0:01:21.3]} 33. Be2 {[%clk 0:02:14.6]}
33... Qe7 {[%clk 0:01:05.6]} 34. Bh5 {[%clk 0:02:11.5]} 34... Bd4 {[%clk
0:00:56.4]} 35. Qd2 {[%clk 0:01:57.5]} 35... Kg8 {[%clk 0:00:47.7]} 36. Bxe8
{[%clk 0:01:55.3]} 36... Qxe8 {[%clk 0:00:44.7]} 37. Rf3 {[%clk 0:01:27.4]}
37... b6 {[%clk 0:00:36.2]} 38. Rf1 {[%clk 0:01:25.6]} 38... Be5 {[%clk
0:00:33.1]} 39. Qe2 {[%clk 0:01:23.9]} 39... Qf7 {[%clk 0:00:30.9]} 40. Rf3
{[%clk 0:01:09.8]} 40... Rg5 {[%clk 0:00:18.9]} 41. Rfh3 {[%clk 0:01:07.9]}
41... Rg7 {[%clk 0:00:18.8]} 42. Qh5 {[%clk 0:01:04.7]} 42... Qe7 {[%clk
0:00:18.9]} 43. Rg4 {[%clk 0:01:02.2]} 43... Rxg4 {[%clk 0:00:15]} 44. Qxg4+
{[%clk 0:01:03.1]} 44... Qg7 {[%clk 0:00:15.2]} 45. Rh4 {[%clk 0:00:57.9]} 45...
Kf8 {[%clk 0:00:13.2]} 46. Qxg7+ {[%clk 0:00:57.6]} 46... Kxg7 {[%clk
0:00:13.2]} 47. Rg4+ {[%clk 0:00:57.9]} 47... Kf7 {[%clk 0:00:13.4]} 48. g3
{[%clk 0:00:56.4]} 48... Bd4 {[%clk 0:00:11.7]} 49. Kg2 {[%clk 0:00:56.6]} 49...
Be5 {[%clk 0:00:11.8]} 50. Kh3 {[%clk 0:00:57.1]} 50... Bc3 {[%clk 0:00:11.6]}
51. Kh4 {[%clk 0:00:57.8]} 51... Bd4 {[%clk 0:00:11]} 52. Kh5 {[%clk 0:00:58.4]}
52... Be3 {[%clk 0:00:10.9]} 53. Re4 {[%clk 0:00:58]} 53... Bf2 {[%clk
0:00:08.7]} 54. g4 {[%clk 0:00:56.9]} 54... Bg3 {[%clk 0:00:07.7]} 55. Kh6
{[%clk 0:00:56.3]} 55... Be5 {[%clk 0:00:06.6]} 56. Kxh7 {[%clk 0:00:56.1]} 1-0

[Event "*** SCC Grand Prix: Titled Tuesday Blitz"]
[Site "Chess.com"]
[Date "2020.07.21"]
[Round "10"]
[White "chargemax23"]
[Black "Thipsay"]
[Result "1-0"]
[WhiteElo "2608"]
[BlackElo "2467"]
[TimeControl "180+1"]
[EndTime "12:00:08 PDT"]
[Termination "chargemax23 won by resignation"]

1. e4 {[%clk 0:03:00.9]} 1... e5 {[%clk 0:02:59.3]} 2. Nf3 {[%clk 0:03:00.4]}
2... Nc6 {[%clk 0:02:59.3]} 3. Bb5 {[%clk 0:02:59.6]} 3... a6 {[%clk 0:02:58.9]}
4. Ba4 {[%clk 0:02:59.2]} 4... Nf6 {[%clk 0:02:59]} 5. d3 {[%clk 0:02:59.1]}
5... b5 {[%clk 0:02:52.9]} 6. Bb3 {[%clk 0:02:58.5]} 6... Be7 {[%clk 0:02:52.8]}
7. O-O {[%clk 0:02:57.5]} 7... O-O {[%clk 0:02:52.7]} 8. a4 {[%clk 0:02:57.4]}
8... Rb8 {[%clk 0:02:43.7]} 9. axb5 {[%clk 0:02:55.1]} 9... axb5 {[%clk
0:02:43.2]} 10. Nc3 {[%clk 0:02:54.7]} 10... d6 {[%clk 0:02:42.5]} 11. h3 {[%clk
0:02:54.5]} 11... Be6 {[%clk 0:02:37.1]} 12. Nd5 {[%clk 0:02:50.6]} 12... Qd7
{[%clk 0:02:36]} 13. c3 {[%clk 0:02:46.6]} 13... Bd8 {[%clk 0:02:30.9]} 14. Re1
{[%clk 0:02:40.2]} 14... Bxd5 {[%clk 0:02:30.3]} 15. exd5 {[%clk 0:02:38.2]}
15... Ne7 {[%clk 0:02:30.3]} 16. c4 {[%clk 0:02:35.9]} 16... bxc4 {[%clk
0:02:28.7]} 17. dxc4 {[%clk 0:02:35.6]} 17... Ng6 {[%clk 0:02:17.3]} 18. Bc2
{[%clk 0:02:25.9]} 18... Kh8 {[%clk 0:02:10]} 19. Ng5 {[%clk 0:01:54.9]} 19...
Ng8 {[%clk 0:01:38.9]} 20. Ra7 {[%clk 0:01:31.6]} 20... Bxg5 {[%clk 0:01:33.2]}
21. Bxg5 {[%clk 0:01:31]} 21... Rxb2 {[%clk 0:01:32.3]} 22. Ba4 {[%clk
0:01:23.6]} 22... Qc8 {[%clk 0:01:31.2]} 23. Bc6 {[%clk 0:01:19.6]} 23... f5
{[%clk 0:01:29.1]} 24. Ra8 {[%clk 0:01:15.3]} 24... Rb8 {[%clk 0:01:28.7]} 25.
Rxb8 {[%clk 0:01:11.4]} 25... Qxb8 {[%clk 0:01:28.7]} 26. Bd2 {[%clk 0:01:10.1]}
26... N8e7 {[%clk 0:01:28.1]} 27. Bb5 {[%clk 0:01:09.8]} 27... f4 {[%clk
0:01:27.5]} 28. Bc3 {[%clk 0:01:02.4]} 28... f3 {[%clk 0:01:26.1]} 29. g3 {[%clk
0:01:01.5]} 29... Nf5 {[%clk 0:01:23.4]} 30. Kh2 {[%clk 0:00:43.5]} 30... Qc8
{[%clk 0:01:16.6]} 31. c5 {[%clk 0:00:37.6]} 31... Nh6 {[%clk 0:00:58.9]} 32.
Bd3 {[%clk 0:00:32.2]} 32... Ng4+ {[%clk 0:00:47.4]} 33. hxg4 {[%clk 0:00:31.5]}
33... Qxg4 {[%clk 0:00:46.3]} 34. Re4 {[%clk 0:00:30.7]} 34... Nf4 {[%clk
0:00:41.3]} 35. Bf1 {[%clk 0:00:25.8]} 35... Rf6 {[%clk 0:00:17]} 36. Qa4 {[%clk
0:00:24.8]} 36... Qh5+ {[%clk 0:00:15.7]} 37. Kg1 {[%clk 0:00:24.7]} 37... h6
{[%clk 0:00:12.5]} 38. Rxf4 {[%clk 0:00:24]} 38... exf4 {[%clk 0:00:11.7]} 39.
Bxf6 {[%clk 0:00:24.3]} 39... fxg3 {[%clk 0:00:11.6]} 40. Bxg7+ {[%clk
0:00:24.2]} 40... Kxg7 {[%clk 0:00:11.1]} 41. Qd4+ {[%clk 0:00:24.4]} 41... Kf8
{[%clk 0:00:10.1]} 42. fxg3 {[%clk 0:00:24.3]} 42... Qf5 {[%clk 0:00:08.9]} 43.
Qf4 {[%clk 0:00:22.4]} 43... Qxf4 {[%clk 0:00:08.3]} 44. gxf4 {[%clk 0:00:22.7]}
44... dxc5 {[%clk 0:00:09.2]} 45. Kf2 {[%clk 0:00:23.3]} 45... Ke7 {[%clk
0:00:09.7]} 46. Kxf3 {[%clk 0:00:23.7]} 46... Kd6 {[%clk 0:00:10.2]} 47. Ke4
{[%clk 0:00:24]} 47... Ke7 {[%clk 0:00:10.1]} 48. Ke5 {[%clk 0:00:23.8]} 1-0

[Event "*** SCC Grand Prix: Titled Tuesday Blitz"]
[Site "Chess.com"]
[Date "2020.07.21"]
[Round "10"]
[White "ural58"]
[Black "Artem_Sadovsky"]
[Result "1-0"]
[WhiteElo "2534"]
[BlackElo "2502"]
[TimeControl "180+1"]
[EndTime "12:00:12 PDT"]
[Termination "ural58 won on time"]

1. e4 {[%clk 0:03:00.9]} 1... c6 {[%clk 0:02:56.7]} 2. b3 {[%clk 0:02:59.6]}
2... d5 {[%clk 0:02:57]} 3. Qe2 {[%clk 0:02:59.2]} 3... dxe4 {[%clk 0:02:55.5]}
4. Nc3 {[%clk 0:02:59.3]} 4... Nf6 {[%clk 0:02:52.7]} 5. Nxe4 {[%clk 0:02:59.4]}
5... Nxe4 {[%clk 0:02:52.4]} 6. Qxe4 {[%clk 0:03:00.3]} 6... Nd7 {[%clk
0:02:51.1]} 7. Bb2 {[%clk 0:02:59.9]} 7... Nf6 {[%clk 0:02:50.2]} 8. Qe5 {[%clk
0:02:59.9]} 8... e6 {[%clk 0:02:42.7]} 9. Qg3 {[%clk 0:02:58.7]} 9... Bb4 {[%clk
0:02:33.8]} 10. Bd3 {[%clk 0:02:42.2]} 10... Bxd2+ {[%clk 0:02:29.9]} 11. Kf1
{[%clk 0:02:36.2]} 11... Bh6 {[%clk 0:02:22.2]} 12. Rd1 {[%clk 0:02:32.5]} 12...
Qe7 {[%clk 0:02:15.2]} 13. Be5 {[%clk 0:02:28]} 13... Nd5 {[%clk 0:02:04.1]} 14.
c4 {[%clk 0:01:59.5]} 14... Nb6 {[%clk 0:02:04.2]} 15. Nf3 {[%clk 0:01:48.2]}
15... Nd7 {[%clk 0:02:02.5]} 16. Bxg7 {[%clk 0:01:40.7]} 16... Rg8 {[%clk
0:02:01.6]} 17. Bxh6 {[%clk 0:01:40.8]} 17... Rxg3 {[%clk 0:02:00.9]} 18. hxg3
{[%clk 0:01:41.4]} 18... f6 {[%clk 0:01:46.5]} 19. Bf4 {[%clk 0:01:18.7]} 19...
Nf8 {[%clk 0:01:44.6]} 20. Bd6 {[%clk 0:01:10.2]} 20... Qd8 {[%clk 0:01:04.4]}
21. Bxf8 {[%clk 0:01:05.2]} 21... Kxf8 {[%clk 0:01:05.3]} 22. Rxh7 {[%clk
0:01:05]} 22... Kg8 {[%clk 0:01:05.9]} 23. Rh4 {[%clk 0:00:44.4]} 23... f5
{[%clk 0:00:49.9]} 24. Ke2 {[%clk 0:00:43.5]} 24... Qf6 {[%clk 0:00:45.5]} 25.
g4 {[%clk 0:00:32.6]} 25... e5 {[%clk 0:00:40]} 26. g5 {[%clk 0:00:20.2]} 26...
Qg7 {[%clk 0:00:39.6]} 27. c5 {[%clk 0:00:15.8]} 27... e4 {[%clk 0:00:39.5]} 28.
Bc4+ {[%clk 0:00:16]} 28... Kf8 {[%clk 0:00:37.4]} 29. Nd4 {[%clk 0:00:14.6]}
29... Bd7 {[%clk 0:00:31.7]} 30. f4 {[%clk 0:00:13.9]} 30... exf3+ {[%clk
0:00:21.1]} 31. Nxf3 {[%clk 0:00:13.6]} 31... Re8+ {[%clk 0:00:15.2]} 32. Kf2
{[%clk 0:00:13.7]} 32... Qb2+ {[%clk 0:00:14.4]} 33. Rd2 {[%clk 0:00:13.8]}
33... Qc3 {[%clk 0:00:13.2]} 34. Rxd7 {[%clk 0:00:11.6]} 34... Qe3+ {[%clk
0:00:08.1]} 35. Kg3 {[%clk 0:00:10.1]} 35... Re7 {[%clk 0:00:04.1]} 36. Rh8+
{[%clk 0:00:09]} 36... Kg7 {[%clk 0:00:04.1]} 37. Rg8+ {[%clk 0:00:09.2]} 37...
Kh7 {[%clk 0:00:04.2]} 38. g6+ {[%clk 0:00:07.9]} 38... Kh6 {[%clk 0:00:04.5]}
39. Rxe7 {[%clk 0:00:07.3]} 39... Qxe7 {[%clk 0:00:04]} 40. g7 {[%clk
0:00:06.8]} 40... Kh7 {[%clk 0:00:02.1]} 41. Rf8 {[%clk 0:00:05.3]} 1-0